bitfinex-derivatives/quotes_BTCF0:USTF0_20230701
["timestamp","ask_amount","ask_price","bid_price","bid_amount"]
[1688223747434,0.26055059,30675.0,30674.0,0.264264]
[1688223747743,0.26055059,30675.0,30674.0,0.20772245]
[1688223749946,0.26055059,30675.0,30674.0,0.22728645]
[1688223750336,0.26055059,30675.0,30674.0,0.22060744]
[1688223753945,0.26055059,30675.0,30673.0,0.00048897]
[1688223754147,0.26055059,30675.0,30674.0,0.247]
[1688223754752,0.21158571,30675.0,30674.0,0.26584945]
[1688223755638,0.21158571,30675.0,30674.0,0.28541345]
[1688223755639,0.01455059,30675.0,30674.0,0.28541345]
[1688223755838,0.02592822,30677.0,30675.0,0.03057819]
[1688223756071,0.00048901,30678.0,30676.0,0.71126205]
[1688223756240,0.00048901,30678.0,30677.0,0.247]
[1688223756446,0.02665232,30678.0,30677.0,0.28407914]
[1688223756650,0.00048901,30678.0,30677.0,0.30364114]
[1688223757053,0.00048901,30678.0,30677.0,0.36869174]
[1688223757955,0.00048901,30678.0,30677.0,0.30364114]
[1688223758151,0.00048901,30678.0,30677.0,0.36869174]
[1688223758947,0.00048901,30678.0,30677.0,0.30364114]
[1688223762544,0.00048901,30678.0,30677.0,0.31014114]
[1688223762751,0.02591839,30681.0,30677.0,0.273062]
[1688223762951,0.02591839,30681.0,30680.0,0.6078]
[1688223763154,1.3897,30686.0,30680.0,0.66219551]
[1688223763350,0.66003751,30686.0,30685.0,0.2463]
[1688223763663,0.76148461,30686.0,30685.0,0.2463]
[1688223763955,0.51448461,30686.0,30685.0,0.2463]
[1688223764157,0.51448461,30686.0,30685.0,0.26514945]
[1688223764359,0.51448461,30686.0,30685.0,0.26452969]
[1688223765262,0.51448461,30686.0,30685.0,0.28337914]
[1688223765862,0.51448461,30686.0,30685.0,0.38424945]
[1688223766558,0.51448461,30686.0,30685.0,0.40247914]
[1688223768156,0.51448461,30686.0,30685.0,0.3654]
[1688223768358,0.51448461,30686.0,30683.0,1.137]
[1688223768562,0.51448461,30686.0,30683.0,1.15522969]
[1688223768761,0.51448461,30686.0,30683.0,1.137]
[1688223768954,0.51448461,30686.0,30683.0,1.15584945]
[1688223769155,0.51448461,30686.0,30683.0,1.17407914]
[1688223769361,0.51448461,30686.0,30683.0,1.15584945]
[1688223769560,0.51448461,30686.0,30683.0,1.137]
[1688223770066,0.51448461,30686.0,30683.0,0.7762]
[1688223770457,0.51448461,30686.0,30683.0,0.4154]
[1688223771458,0.51448461,30686.0,30685.0,0.3608]
[1688223772364,1.23868461,30686.0,30682.0,0.00048883]
[1688223772557,0.3654,30683.0,30682.0,0.00048883]
[1688223776368,0.7262,30683.0,30682.0,0.00048883]
[1688223776562,0.7262,30683.0,30675.0,0.02407819]
[1688223776762,0.3654,30676.0,30675.0,0.02407819]
[1688223776970,0.39083939,30676.0,30675.0,0.02407819]
[1688223777371,0.02543939,30678.0,30675.0,0.38667819]
[1688223777568,0.7262,30679.0,30675.0,0.38667819]
[1688223777868,0.3654,30679.0,30678.0,0.3608]
[1688223779475,0.00048897,30680.0,30678.0,0.7245]
[1688223779768,0.01035519,30679.0,30678.0,0.7245]
[1688223780376,0.01035519,30679.0,30678.0,0.76157914]
[1688223782065,0.01035519,30679.0,30678.0,0.7245]
[1688223783267,0.01035519,30679.0,30678.0,0.3608]
[1688223784376,0.37225519,30679.0,30678.0,0.3608]
[1688223788580,0.6378136,30679.0,30678.0,0.3608]
[1688223790471,1.12758057,30679.0,30678.0,0.3608]
[1688223791376,1.61676899,30679.0,30674.0,0.3608]
[1688223791678,0.3654,30675.0,30674.0,0.32447]
[1688223791873,0.37576081,30675.0,30674.0,0.32447]
[1688223793277,0.39532481,30675.0,30674.0,0.32447]
[1688223793884,0.39532481,30675.0,30673.0,0.00048897]
[1688223794085,0.3654,30674.0,30673.0,0.00048897]
[1688223794383,0.39532724,30674.0,30673.0,0.00048897]
[1688223794593,0.39532724,30674.0,30672.0,0.019566]
[1688223794882,0.382965,30673.0,30671.0,0.38054057]
[1688223795275,0.02992992,30672.0,30671.0,0.38054057]
[1688223796276,0.02992992,30672.0,30671.0,0.35509057]
[1688223799783,0.02992992,30672.0,30671.0,0.33552457]
[1688223800488,0.39182992,30672.0,30671.0,0.33552457]
[1688223800789,0.39182992,30672.0,30671.0,0.35509057]
[1688223801787,0.39182992,30672.0,30671.0,0.33552457]
[1688223802179,0.39182992,30672.0,30670.0,0.019567]
[1688223802374,0.39182992,30672.0,30668.0,0.3608]
[1688223802579,0.3634,30669.0,30666.0,0.019569]
[1688223802792,0.019568,30668.0,30665.0,0.426035]
[1688223803783,0.019568,30668.0,30665.0,0.38037]
[1688223803978,0.019568,30668.0,30665.0,0.3608]
[1688223803979,0.3619,30666.0,30665.0,0.3608]
[1688223804179,0.38147,30666.0,30665.0,0.3608]
[1688223804387,0.38147,30666.0,30665.0,0.38037]
[1688223804586,0.38147,30666.0,30665.0,0.3608]
[1688223806290,0.37147,30666.0,30665.0,0.3608]
[1688223806685,0.85932715,30666.0,30663.0,0.00048912]
[1688223806883,0.3654,30664.0,30663.0,0.00048912]
[1688223807083,0.384971,30664.0,30663.0,0.02006012]
[1688223809890,0.029571,30664.0,30663.0,0.02006012]
[1688223810191,0.01,30664.0,30663.0,0.38086012]
[1688223810890,0.01,30664.0,30663.0,0.74336012]
[1688223811079,0.01,30664.0,30663.0,0.76220957]
[1688223811286,0.01,30664.0,30663.0,0.78043926]
[1688223811980,0.01,30664.0,30663.0,0.76220957]
[1688223813799,0.02957,30664.0,30663.0,0.76220957]
[1688223814291,0.03957,30664.0,30663.0,0.74336012]
[1688223814792,0.02,30664.0,30663.0,0.76220957]
[1688223814997,0.039571,30664.0,30663.0,0.76220957]
[1688223815792,0.039571,30664.0,30663.0,0.39970957]
[1688223816000,0.06616419,30664.0,30663.0,0.39970957]
[1688223816199,0.06616419,30664.0,30663.0,0.38086012]
[1688223817392,0.06616419,30664.0,30663.0,0.40970957]
[1688223817796,0.06616419,30664.0,30663.0,0.39086012]
[1688223820604,0.06616419,30664.0,30663.0,0.3906499]
[1688223821103,0.43116419,30664.0,30663.0,0.3906499]
[1688223823903,0.49519703,30664.0,30663.0,0.3906499]
[1688223824703,0.49519703,30664.0,30663.0,0.3710789]
[1688223825297,0.98536196,30664.0,30663.0,0.3710789]
[1688223826099,0.3654,30661.0,30654.0,0.058732]
[1688223826307,0.3608,30660.0,30655.0,0.380441]
[1688223826606,0.3654,30656.0,30655.0,0.351075]
[1688223826910,0.384974,30656.0,30655.0,0.019575]
[1688223827711,0.745774,30656.0,30655.0,0.019575]
[1688223828895,0.745774,30656.0,30653.0,0.379059]
[1688223829108,0.365,30654.0,30653.0,0.3138]
[1688223829312,0.384576,30654.0,30653.0,0.3138]
[1688223830606,0.384576,30654.0,30652.0,0.00032955]
[1688223830797,0.247,30653.0,30652.0,0.00032955]
[1688223831003,0.627377,30653.0,30652.0,0.00032955]
[1688223831402,0.627377,30653.0,30652.0,0.01349331]
[1688223831700,0.019578,30651.0,30650.0,0.06505233]
[1688223831905,0.266578,30651.0,30650.0,0.06505233]
[1688223832503,0.266578,30651.0,30649.0,0.01975342]
[1688223832801,0.266579,30650.0,30649.0,0.01975342]
[1688223832997,0.266579,30650.0,30649.0,0.00017542]
[1688223833204,0.627379,30650.0,30649.0,0.00017542]
[1688223833404,1.1146706,30650.0,30649.0,0.00017542]
[1688223835214,2.60218722,30650.0,30649.0,0.00017542]
[1688223835409,2.60218722,30650.0,30645.0,0.344581]
[1688223835710,2.60218722,30650.0,30645.0,0.019581]
[1688223835711,0.245581,30646.0,30645.0,0.019581]
[1688223836316,0.245581,30646.0,30645.0,0.01771008]
[1688223836511,0.73314435,30646.0,30643.0,0.019583]
[1688223836711,0.247,30644.0,30643.0,0.019583]
[1688223836911,0.266583,30644.0,30643.0,0.019583]
[1688223838112,0.2459,30643.0,30642.0,0.058752]
[1688223838306,0.2459,30643.0,30642.0,0.019584]
[1688223838307,0.512283,30643.0,30642.0,0.019584]
[1688223839301,0.512283,30643.0,30642.0,0.03801755]
[1688223841125,1.00402737,30643.0,30642.0,0.03801755]
[1688223841614,1.00402737,30643.0,30642.0,0.01843355]
[1688223842309,1.00402737,30643.0,30642.0,0.01900377]
[1688223842516,1.00402737,30643.0,30642.0,0.03858777]
[1688223843224,0.95502678,30643.0,30642.0,0.03858777]
[1688223843716,0.95502678,30643.0,30642.0,0.00228881]
[1688223843916,1.44505126,30643.0,30639.0,0.069586]
[1688223844112,0.266586,30640.0,30639.0,0.069586]
[1688223844314,0.266586,30640.0,30639.0,0.05]
[1688223844620,0.26638757,30640.0,30639.0,0.05]
[1688223846015,0.26638757,30640.0,30639.0,0.06535321]
[1688223846221,0.26638757,30640.0,30639.0,0.05484274]
[1688223846418,0.75413798,30640.0,30639.0,0.05484274]
[1688223847124,2.00093798,30640.0,30638.0,0.01]
[1688223847415,0.4918,30639.0,30633.0,0.029589]
[1688223847621,0.4918,30639.0,30634.0,0.05096688]
[1688223847622,0.2463,30635.0,30634.0,0.05096688]
[1688223847823,0.18420005,30635.0,30634.0,0.05096688]
[1688223848223,0.67455757,30635.0,30634.0,0.05096688]
[1688223848522,0.67455757,30635.0,30633.0,0.029589]
[1688223848722,0.2465,30634.0,30633.0,0.029589]
[1688223848920,0.266089,30634.0,30633.0,0.029589]
[1688223850816,0.18115005,30634.0,30633.0,0.029589]
[1688223851211,0.20073905,30634.0,30633.0,0.04156958]
[1688223853922,0.20073905,30634.0,30633.0,0.02198058]
[1688223854110,0.20073905,30634.0,30632.0,0.01]
[1688223854111,0.44773905,30634.0,30632.0,0.01]
[1688223854320,0.4918,30633.0,30632.0,0.01]
[1688223854530,1.00175025,30633.0,30632.0,0.01]
[1688223854922,1.49238364,30633.0,30632.0,0.01]
[1688223855427,1.49238364,30633.0,30631.0,0.01]
[1688223855628,0.6056,30632.0,30631.0,0.01]
[1688223855819,0.62519,30632.0,30631.0,0.01]
[1688223856341,1.11756732,30632.0,30630.0,0.01]
[1688223856517,0.2457,30631.0,30630.0,0.01]
[1688223856717,0.265291,30631.0,30630.0,0.01]
[1688223857033,0.99811202,30631.0,30627.0,0.33027628]
[1688223857227,0.6078,30628.0,30627.0,0.33027628]
[1688223857416,0.627393,30628.0,30627.0,0.00017628]
[1688223857627,1.11866292,30628.0,30627.0,0.00017628]
[1688223857822,1.11866292,30628.0,30627.0,0.01977028]
[1688223859628,0.75786292,30628.0,30627.0,0.01977028]
[1688223863633,0.75786292,30628.0,30627.0,0.00017628]
[1688223867223,0.82323003,30628.0,30627.0,0.01976928]
[1688223867419,0.84928795,30628.0,30627.0,0.01976928]
[1688223869832,0.84928795,30628.0,30627.0,0.03371325]
[1688223872835,0.84928795,30628.0,30627.0,0.0525627]
[1688223873224,0.78392849,30628.0,30627.0,0.0525627]
[1688223873430,0.78392849,30628.0,30627.0,0.07079239]
[1688223873728,0.71856138,30628.0,30627.0,0.0525627]
[1688223874035,0.71856138,30628.0,30627.0,0.43159239]
[1688223874036,0.69896838,30628.0,30627.0,0.43159239]
[1688223874231,0.247,30628.0,30627.0,0.67729239]
[1688223874431,0.48779506,30628.0,30627.0,0.68379239]
[1688223874626,0.292619,30634.0,30627.0,0.66494294]
[1688223874827,0.292619,30634.0,30633.0,0.627388]
[1688223874828,0.295969,30634.0,30633.0,0.627388]
[1688223875029,0.295969,30634.0,30633.0,0.64561769]
[1688223875237,0.77156867,30634.0,30633.0,0.42786787]
[1688223875736,0.797767,30634.0,30633.0,0.40963818]
[1688223876128,0.797767,30634.0,30633.0,0.39078873]
[1688223876650,0.797767,30634.0,30633.0,0.40901842]
[1688223876941,0.797767,30634.0,30633.0,0.42786787]
[1688223877131,0.797767,30634.0,30633.0,0.39078873]
[1688223878650,1.044767,30634.0,30633.0,0.01040073]
[1688223878939,1.044767,30634.0,30630.0,0.058766]
[1688223879135,0.26659,30631.0,30630.0,0.058766]
[1688223879544,0.75677946,30631.0,30630.0,0.058766]
[1688223884754,0.75677946,30631.0,30630.0,0.02935812]
[1688223888466,0.75677946,30631.0,30630.0,0.0292112]
[1688223891159,0.75677946,30631.0,30630.0,0.0096202]
[1688223891340,0.75677946,30631.0,30630.0,0.0292122]
[1688223893346,0.75677946,30631.0,30630.0,0.3900122]
[1688223894035,0.75677946,30631.0,30630.0,0.40886165]
[1688223894655,0.73718946,30631.0,30630.0,0.42709134]
[1688223895646,0.75677946,30631.0,30630.0,0.42709134]
[1688223897852,0.75677946,30631.0,30630.0,0.40824189]
[1688223898747,0.75677946,30631.0,30630.0,0.3900122]
[1688223899156,0.75677946,30631.0,30630.0,0.40824189]
[1688223899545,0.75677946,30631.0,30630.0,0.3900122]
[1688223903942,0.75677946,30631.0,30630.0,0.40824189]
[1688223904153,0.75677946,30631.0,30630.0,0.3900122]
[1688223904763,0.75677946,30631.0,30630.0,0.40824189]
[1688223905151,0.75677946,30631.0,30630.0,0.38980721]
[1688223905453,0.75677946,30631.0,30630.0,0.4080369]
[1688223905859,0.75677946,30631.0,30630.0,0.38980721]
[1688223906459,0.75677946,30631.0,30630.0,0.4080369]
[1688223906766,0.75677946,30631.0,30630.0,0.38980721]
[1688223909057,0.75677946,30631.0,30630.0,0.4080369]
[1688223909957,0.75677946,30631.0,30630.0,0.38980721]
[1688223911956,0.75677946,30631.0,30630.0,0.37021521]
[1688223912259,0.75677946,30631.0,30630.0,0.00718637]
[1688223912260,1.31343075,30631.0,30630.0,0.00718637]
[1688223912561,1.31343075,30631.0,30627.0,0.01977028]
[1688223912760,0.266593,30628.0,30627.0,0.01977028]
[1688223913150,0.75319921,30628.0,30627.0,0.01977028]
[1688223913351,1.07759921,30628.0,30627.0,0.01977028]
[1688223914363,1.43839921,30628.0,30627.0,0.01977028]
[1688223914861,1.43839921,30628.0,30627.0,0.02695481]
[1688223916664,1.07759921,30628.0,30627.0,0.02695481]
[1688223919957,0.73360621,30628.0,30627.0,0.29120426]
[1688223920166,0.73360621,30628.0,30627.0,0.30943395]
[1688223922067,0.75994042,30628.0,30627.0,0.30943395]
[1688223922767,0.75994042,30628.0,30627.0,0.2905845]
[1688223922968,0.75994042,30628.0,30627.0,0.27235481]
[1688223923168,0.77953342,30628.0,30627.0,0.27235481]
[1688223923669,0.77823342,30628.0,30627.0,0.02695481]
[1688223926561,0.77823342,30628.0,30627.0,0.02675082]
[1688223928871,0.75864042,30628.0,30627.0,0.02675082]
[1688223929766,0.77823242,30628.0,30627.0,0.02675082]
[1688223931671,1.07933242,30628.0,30627.0,0.02675082]
[1688223932376,1.07933242,30628.0,30627.0,0.02740212]
[1688223932670,1.05974042,30628.0,30627.0,0.02740212]
[1688223933274,1.07933342,30628.0,30627.0,0.02740212]
[1688223937162,1.05974042,30628.0,30627.0,0.02740212]
[1688223938182,1.07933342,30628.0,30627.0,0.02740212]
[1688223939770,1.07933342,30628.0,30627.0,0.00783583]
[1688223940270,1.07933342,30628.0,30627.0,0.02742883]
[1688223940984,1.07933342,30628.0,30627.0,0.02728681]
[1688223949484,1.07933342,30628.0,30627.0,0.0202443]
[1688223949682,1.07933342,30628.0,30627.0,0.0006513]
[1688223950385,1.07933342,30628.0,30626.0,0.05]
[1688223950574,0.626693,30627.0,30626.0,0.05]
[1688223950778,0.626693,30627.0,30626.0,0.069594]
[1688223951175,1.11346898,30627.0,30626.0,0.069594]
[1688223951371,1.11346898,30627.0,30626.0,0.0702615]
[1688223953876,1.11346898,30627.0,30626.0,0.0701868]
[1688223959778,1.11346898,30627.0,30626.0,0.07739946]
[1688223962490,0.75266898,30627.0,30626.0,0.07739946]
[1688223966204,0.75266898,30627.0,30626.0,0.05780546]
[1688223966582,0.75266898,30627.0,30626.0,0.07739946]
[1688223967687,0.75266898,30627.0,30626.0,0.07727506]
[1688223972695,0.75266898,30627.0,30626.0,0.05768106]
[1688223975198,0.75266898,30627.0,30626.0,0.07727506]
[1688223979788,0.75266898,30627.0,30626.0,0.05768106]
[1688223981391,1.2402603,30627.0,30626.0,0.05768106]
[1688223981898,1.35793457,30627.0,30626.0,0.05768106]
[1688223982087,1.35793457,30627.0,30626.0,0.04968163]
[1688223983202,1.2402603,30627.0,30626.0,0.04968163]
[1688223983407,1.35793428,30627.0,30626.0,0.04968163]
[1688223984201,1.35793428,30627.0,30626.0,0.06927563]
[1688223984400,1.35793428,30627.0,30626.0,0.04327563]
[1688223984592,1.35793428,30627.0,30626.0,0.03827563]
[1688223985698,1.35793428,30627.0,30626.0,0.01868163]
[1688223986796,1.35793428,30627.0,30626.0,0.01146897]
[1688223987406,1.35793428,30627.0,30626.0,0.01080147]
[1688223990006,1.35773547,30627.0,30626.0,0.03039547]
[1688223990209,1.35863428,30627.0,30626.0,0.03039547]
[1688223994106,0.87104296,30627.0,30626.0,0.04924492]
[1688223994404,0.87104296,30627.0,30626.0,0.41069938]
[1688223994609,0.75336898,30627.0,30626.0,0.41787769]
[1688223994811,0.94939795,30627.0,30626.0,0.41787769]
[1688223995000,0.75336898,30627.0,30626.0,0.03822824]
[1688223996514,0.94940145,30627.0,30626.0,0.03822824]
[1688223998011,0.94940145,30627.0,30626.0,0.39902824]
[1688223998519,0.75336898,30627.0,30626.0,0.39902824]
[1688223999420,0.75336898,30627.0,30626.0,0.41787769]
[1688223999606,0.75336898,30627.0,30626.0,0.39902824]
[1688224000812,0.75336898,30627.0,30626.0,0.41787769]
[1688224002213,0.48677598,30627.0,30626.0,0.68960738]
[1688224002518,0.48677598,30627.0,30626.0,0.68748526]
[1688224008409,0.48677598,30627.0,30626.0,0.66847152]
[1688224009114,0.48677598,30627.0,30626.0,0.66197152]
[1688224009422,0.50636898,30627.0,30626.0,0.66197152]
[1688224010625,0.50636898,30627.0,30626.0,0.68082097]
[1688224010925,0.48677598,30627.0,30626.0,0.68082097]
[1688224012023,0.48677598,30627.0,30626.0,0.64374183]
[1688224012228,0.48677598,30627.0,30626.0,0.66197152]
[1688224013226,0.48677598,30627.0,30626.0,0.68082097]
[1688224014411,0.73157598,30627.0,30626.0,0.68082097]
[1688224014820,0.73157598,30627.0,30626.0,0.66197152]
[1688224017221,0.73157598,30627.0,30626.0,0.68082097]
[1688224020519,0.73157598,30627.0,30626.0,0.66259128]
[1688224020726,0.73157598,30627.0,30626.0,0.64374183]
[1688224022326,0.73157598,30627.0,30626.0,0.66259128]
[1688224022721,0.73157598,30627.0,30626.0,0.68082097]
[1688224022920,0.73157598,30627.0,30626.0,0.66259128]
[1688224024322,0.73157598,30627.0,30626.0,0.64374183]
[1688224025228,0.73157598,30627.0,30626.0,0.68082097]
[1688224025432,0.73157598,30627.0,30626.0,0.66259128]
[1688224026031,0.73157598,30627.0,30626.0,0.64374183]
[1688224027829,0.73157598,30627.0,30626.0,0.64350422]
[1688224029724,0.75116898,30627.0,30626.0,0.64350422]
[1688224030524,0.73157598,30627.0,30626.0,0.64350422]
[1688224030730,0.73157598,30627.0,30626.0,0.68058336]
[1688224031327,0.73157598,30627.0,30626.0,0.66235367]
[1688224032334,0.73157598,30627.0,30626.0,0.68058336]
[1688224032939,0.73157598,30627.0,30626.0,0.66235367]
[1688224033136,0.73157598,30627.0,30626.0,0.68058336]
[1688224033340,0.73157598,30627.0,30626.0,0.66235367]
[1688224034237,0.73157598,30627.0,30626.0,0.68058336]
[1688224034641,0.48677598,30627.0,30626.0,0.68028336]
[1688224035843,0.48677598,30627.0,30626.0,0.66143391]
[1688224036139,0.48677598,30627.0,30626.0,0.64320422]
[1688224036536,0.48677598,30627.0,30626.0,0.66143391]
[1688224036742,0.48677598,30627.0,30626.0,0.64320422]
[1688224037036,0.48677598,30627.0,30626.0,0.66205367]
[1688224037339,0.48677598,30627.0,30626.0,0.68028336]
[1688224041339,0.48677598,30627.0,30626.0,0.66143391]
[1688224042029,0.48677598,30627.0,30626.0,0.68028336]
[1688224048141,0.48677598,30627.0,30626.0,0.66205367]
[1688224048944,0.48677598,30627.0,30626.0,0.68028336]
[1688224049948,0.48677598,30627.0,30626.0,0.66205367]
[1688224050351,0.75337098,30627.0,30626.0,0.39631338]
[1688224052245,0.75337098,30627.0,30626.0,0.43339252]
[1688224052645,0.75337098,30627.0,30626.0,0.41516283]
[1688224052952,0.75337098,30627.0,30626.0,0.39631338]
[1688224056849,0.75337098,30627.0,30626.0,0.03551338]
[1688224059850,0.84797026,30627.0,30626.0,0.03691274]
[1688224060052,0.80067056,30627.0,30626.0,0.01731874]
[1688224060358,0.80067058,30627.0,30626.0,0.03691274]
[1688224061060,0.75337098,30627.0,30626.0,0.03691274]
[1688224062059,0.73377598,30627.0,30626.0,0.03691274]
[1688224062260,0.48677598,30627.0,30626.0,0.28391274]
[1688224062564,0.2448,30636.0,30628.0,0.019593]
[1688224062862,0.47340835,30636.0,30635.0,0.627089]
[1688224063055,0.2448,30636.0,30635.0,0.627089]
[1688224063251,0.2448,30636.0,30635.0,0.66416814]
[1688224063559,0.4868969,30636.0,30635.0,0.66491822]
[1688224063764,0.27150111,30638.0,30635.0,0.66491822]
[1688224063958,0.27150111,30638.0,30637.0,0.247]
[1688224064254,0.264387,30638.0,30637.0,0.266587]
[1688224064469,0.266587,30638.0,30637.0,0.0203335]
[1688224064654,0.266587,30638.0,30637.0,0.03856319]
[1688224065050,0.266587,30638.0,30637.0,0.0203335]
[1688224067355,0.26635484,30638.0,30637.0,0.0203335]
[1688224067563,0.26635484,30638.0,30637.0,0.0007465]
[1688224067758,0.26635484,30638.0,30634.0,0.048972]
[1688224067965,0.247,30635.0,30634.0,0.048972]
[1688224068155,0.266589,30635.0,30634.0,0.048972]
[1688224068355,0.266589,30635.0,30633.0,0.019589]
[1688224068658,0.019589,30635.0,30634.0,0.00054004]
[1688224068961,0.265289,30635.0,30634.0,0.00054004]
[1688224069552,0.265289,30635.0,30633.0,0.019589]
[1688224069754,0.266589,30634.0,30633.0,0.019589]
[1688224069955,0.872089,30634.0,30629.0,0.42659768]
[1688224070156,0.625089,30634.0,30633.0,0.0027192]
[1688224070361,1.35900658,30634.0,30630.0,0.00271922]
[1688224070565,0.626391,30631.0,30629.0,0.00048968]
[1688224070767,0.32048751,30630.0,30629.0,0.00048968]
[1688224071465,0.32048751,30630.0,30626.0,0.05919373]
[1688224071763,0.266593,30627.0,30626.0,0.05919373]
[1688224071967,0.266593,30627.0,30626.0,0.01020873]
[1688224072155,0.266593,30627.0,30626.0,0.01647737]
[1688224072664,0.266593,30627.0,30626.0,0.01909196]
[1688224073565,0.266593,30627.0,30626.0,0.0185955]
[1688224075363,0.266593,30627.0,30624.0,0.019594]
[1688224075667,0.2448,30625.0,30624.0,0.019594]
[1688224075864,0.264395,30625.0,30624.0,0.019594]
[1688224076564,0.264395,30625.0,30624.0,0.02015924]
[1688224077659,0.264395,30625.0,30624.0,0.00056524]
[1688224077865,0.264395,30625.0,30624.0,0.01053797]
[1688224078168,0.264395,30625.0,30624.0,0.00056524]
[1688224078471,0.2467,30624.0,30623.0,0.019596]
[1688224078672,0.2467,30624.0,30621.0,0.476124]
[1688224078673,0.513295,30624.0,30621.0,0.476124]
[1688224078857,0.265597,30622.0,30621.0,0.115324]
[1688224079360,0.265597,30622.0,30621.0,0.05]
[1688224079559,0.265597,30622.0,30621.0,0.05058555]
[1688224079761,0.626397,30622.0,30621.0,0.05058555]
[1688224080474,0.626397,30622.0,30621.0,0.05]
[1688224080960,0.466397,30622.0,30621.0,0.05]
[1688224082172,0.466397,30622.0,30621.0,0.06262185]
[1688224082560,0.713097,30622.0,30619.0,0.2]
[1688224082762,0.247,30620.0,30619.0,0.2]
[1688224082968,0.266598,30620.0,30619.0,0.2]
[1688224083672,0.266598,30620.0,30619.0,0.219598]
[1688224084081,0.266598,30620.0,30619.0,0.23265049]
[1688224085271,0.266598,30620.0,30619.0,0.21305249]
[1688224085869,0.266598,30620.0,30619.0,0.23265149]
[1688224087075,0.266598,30620.0,30619.0,0.21305249]
[1688224087371,0.266598,30620.0,30619.0,0.23265149]
[1688224088372,0.266598,30620.0,30619.0,0.26973063]
[1688224088875,0.266598,30620.0,30619.0,0.23265149]
[1688224095376,0.266598,30620.0,30619.0,0.23246443]
[1688224097585,0.266598,30620.0,30619.0,0.21286543]
[1688224097775,0.511298,30620.0,30619.0,0.21286543]
[1688224097968,1.00254136,30620.0,30619.0,0.21286543]
[1688224098173,1.00254136,30620.0,30619.0,0.17441294]
[1688224098575,1.49250769,30620.0,30619.0,0.17441294]
[1688224098775,1.49250769,30620.0,30616.0,0.1088]
[1688224098972,0.2653,30617.0,30616.0,0.1088]
[1688224099685,0.0196,30617.0,30616.0,0.1088]
[1688224099887,0.2666,30617.0,30616.0,0.1088]
[1688224100384,0.2666,30617.0,30616.0,0.14587914]
[1688224100385,0.0196,30617.0,30616.0,0.14587914]
[1688224100584,0.2644,30617.0,30616.0,0.14587914]
[1688224100781,0.03457386,30619.0,30616.0,0.1088]
[1688224100979,0.049,30618.0,30617.0,0.05667814]
[1688224101179,0.296,30618.0,30617.0,0.03844845]
[1688224101380,0.29588475,30618.0,30617.0,0.019599]
[1688224101690,0.78387662,30618.0,30617.0,0.019599]
[1688224103483,0.78387662,30618.0,30617.0,0.03782869]
[1688224103889,0.78387662,30618.0,30617.0,0.019599]
[1688224104479,0.78387662,30618.0,30617.0,0.03782869]
[1688224105892,0.78387662,30618.0,30617.0,0.019599]
[1688224106596,0.78387662,30618.0,30617.0,0.03782869]
[1688224106787,0.78387662,30618.0,30617.0,0.05667814]
[1688224106987,0.73499187,30618.0,30617.0,0.05667814]
[1688224107187,0.75459087,30618.0,30617.0,0.05667814]
[1688224108293,0.75459087,30618.0,30617.0,0.03844845]
[1688224108903,0.75459087,30618.0,30617.0,0.05667814]
[1688224109111,0.75459087,30618.0,30617.0,0.03844845]
[1688224109409,0.75459087,30618.0,30617.0,0.019599]
[1688224109913,0.75459087,30618.0,30617.0,0.03320903]
[1688224112805,0.78059284,30618.0,30617.0,0.03320903]
[1688224113110,0.78059284,30618.0,30617.0,0.05205848]
[1688224113414,0.76099384,30618.0,30617.0,0.05205848]
[1688224113608,0.76099384,30618.0,30617.0,0.07028817]
[1688224114609,0.76099384,30618.0,30617.0,0.0700956]
[1688224114816,0.76099384,30618.0,30617.0,0.05186591]
[1688224115604,0.76099384,30618.0,30617.0,0.0700956]
[1688224126723,0.51399384,30618.0,30617.0,0.38228556]
[1688224127022,0.51399384,30618.0,30617.0,0.37855404]
[1688224129721,0.51399384,30618.0,30617.0,0.41091347]
[1688224130117,0.51399384,30618.0,30617.0,0.31336408]
[1688224130514,0.51399384,30618.0,30617.0,0.37864561]
[1688224133125,0.51399384,30618.0,30617.0,0.31336408]
[1688224134519,0.51399384,30618.0,30617.0,0.37862943]
[1688224136520,0.00048992,30620.0,30619.0,0.05]
[1688224136725,0.2463,30625.0,30619.0,0.71447814]
[1688224136924,0.2463,30625.0,30624.0,0.6078]
[1688224137223,0.2463,30625.0,30624.0,0.627396]
[1688224137224,0.27272155,30625.0,30624.0,0.627396]
[1688224137423,0.27272155,30625.0,30624.0,0.66447514]
[1688224137622,0.75973971,30625.0,30624.0,0.66447514]
[1688224141022,0.51343971,30625.0,30624.0,0.66447514]
[1688224154335,0.76043971,30625.0,30624.0,0.66447514]
[1688224154530,0.76043971,30625.0,30624.0,0.380396]
[1688224158441,0.76043971,30625.0,30624.0,0.019596]
[1688224164738,0.78003471,30625.0,30624.0,0.019596]
[1688224174042,0.78003471,30625.0,30624.0,0.02588018]
[1688224177352,0.78003471,30625.0,30624.0,0.019596]
[1688224180656,0.247,30624.0,30623.0,0.0264931]
[1688224180959,1.00315593,30624.0,30623.0,0.0264931]
[1688224181458,1.00315593,30624.0,30622.0,0.019595]
[1688224181653,0.264394,30623.0,30622.0,0.019595]
[1688224182347,0.7550281,30623.0,30622.0,0.019595]
[1688224182649,0.7550281,30623.0,30620.0,0.05879]
[1688224182851,0.247,30621.0,30620.0,0.05879]
[1688224183158,0.266596,30621.0,30620.0,0.05879]
[1688224184454,0.37379,30622.0,30620.0,0.05879]
[1688224184455,0.31381469,30622.0,30620.0,0.05879]
[1688224184752,0.019596,30621.0,30620.0,0.05879]
[1688224184955,0.266596,30621.0,30620.0,0.05879]
[1688224185856,0.2538485,30622.0,30620.0,0.05879]
[1688224186249,0.019596,30621.0,30620.0,0.05879]
[1688224186559,0.7537995,30621.0,30620.0,0.05879]
[1688224186751,0.42723799,30621.0,30620.0,0.05879]
[1688224187052,0.44683399,30621.0,30620.0,0.05879]
[1688224187258,0.12026072,30621.0,30620.0,0.07701969]
[1688224187652,0.12026072,30621.0,30620.0,0.05879]
[1688224187851,0.68573488,30624.0,30621.0,0.03707914]
[1688224188053,0.019596,30621.0,30620.0,0.05879]
[1688224188251,0.2448,30621.0,30618.0,0.05879]
[1688224188558,0.266597,30619.0,30618.0,0.05879]
[1688224189953,0.588997,30619.0,30618.0,0.05879]
[1688224191064,0.588997,30619.0,30617.0,0.05879]
[1688224191361,0.247,30618.0,30617.0,0.05879]
[1688224191566,0.266598,30618.0,30617.0,0.05879]
[1688224191761,0.75635039,30618.0,30617.0,0.05879]
[1688224192557,0.44934313,30618.0,30617.0,0.05879]